fUSD/lending_fUSD_20250410
["ID","MTS","AMOUNT","RATE_DAILY","PERIOD"]
[357631923,1744258038046,-150.0,0.00018728,2]
[357631924,1744258038068,-1072.966,0.00018728,2]
[357631925,1744258038089,-178.86195724,0.00018728,2]
[357631926,1744258038110,-200.0,0.0001873,7]
[357631927,1744258038132,-150.0,0.00018744,2]
[357631928,1744258038155,-150.0,0.00018746,2]
[357631929,1744258038177,-200.0,0.00018749,2]
[357631930,1744258038200,-150.0,0.00018751,2]
[357631931,1744258038222,-150.0,0.00018768,2]
[357631932,1744258038244,-150.0,0.00018779,2]
[357631933,1744258038269,-150.0,0.00018784,2]
[357631934,1744258038291,-2550.45550397,0.00018787,2]
[357631935,1744258038312,-3096.9483,0.00018787,2]
[357631936,1744258038333,-224.3331,0.00018787,2]
[357631937,1744258038354,-1000.0,0.00018789,2]
[357631938,1744258038378,-150.0,0.00018797,2]
[357631939,1744258038401,-37197.0127,0.000188,2]
[357631940,1744258038422,-1000.0,0.000188,2]
[357631941,1744258038444,-2500.0,0.000188,2]
[357631942,1744258038465,-200.0,0.000188,2]
[357631943,1744258038486,-192.0,0.000188,2]
[357631944,1744258038511,-150.0,0.00018805,2]
[357631945,1744258038533,-150.0,0.00018805,2]
[357631946,1744258038555,-150.0,0.00018837,2]
[357631947,1744258038577,-150.0,0.00018846,2]
[357631948,1744258038602,-150.0,0.0001885,2]
[357631949,1744258038626,-150.0,0.00018851,2]
[357631950,1744258038647,-150.0,0.00018855,2]
[357631951,1744258038670,-150.0,0.00018857,2]
[357631952,1744258038692,-150.0,0.00018858,2]
[357631953,1744258038718,-200.0,0.00018876,2]
[357631954,1744258038744,-155.45006178,0.00018876,2]
[357631955,1744258038767,-250.0,0.00018876,2]
[357631956,1744258038810,-9869.3723997,0.00018887,2]
[357631957,1744258038855,-3779.4592212,0.00018887,2]
[357631958,1744258038894,-56280.7314999,0.00018887,2]
[357631959,1744258038936,-1701.8247504,0.00018887,2]
[357631960,1744258038976,-36535.3139854,0.00018887,2]
[357631961,1744258039020,-124.30035629,0.000189,2]
[357631962,1744258039058,-151.0,0.000189,2]
[357631963,1744258039098,-151.0,0.000189,2]
[357631964,1744258039134,-151.0,0.000189,2]
[357631965,1744258039176,-151.0,0.000189,2]
[357631966,1744258039221,-151.0,0.000189,2]
[357631967,1744258039260,-151.0,0.000189,2]
[357631968,1744258039297,-36083.0014,0.000189,2]
[357631969,1744258039334,-907.51622735,0.000189,2]
[357631970,1744258039369,-192.0,0.000189,2]
[357631971,1744258039406,-209.36962056,0.000189,2]
[357631972,1744258039442,-2550.45550393,0.00018911,2]
[357631973,1744258039477,-33143.45542435,0.00019,2]
[357631974,1744258039516,-286.4999564,0.00019,2]
[357631975,1744258039552,-153.899327,0.00019,2]
[357631976,1744258039588,-151.0,0.00019,2]
[357631977,1744258039623,-152.117448,0.00019,2]
[357631978,1744258039659,-151.0,0.00019,2]
[357631979,1744258039695,-151.0,0.00019,2]
[357631980,1744258039731,-154.529281,0.00019,2]
[357631981,1744258039769,-151.902337,0.00019,2]
[357631982,1744258039805,-151.0,0.00019,2]
[357631983,1744258039865,-151.0,0.00019,2]
[357631984,1744258039914,-210.06028924,0.00019,2]
[357631985,1744258039959,-250.0,0.00019,2]
[357631986,1744258040000,-2550.45550393,0.00019034,2]
[357631987,1744258040041,-2550.45550393,0.00019158,2]
[357631988,1744258040079,-311.43420062,0.00019281,2]
[357631989,1744258040115,-296.61027835,0.00019281,2]
[357631990,1744258040152,-2550.45550393,0.00019282,2]
[357631991,1744258040189,-2550.45550393,0.00019405,2]
[357631992,1744258040225,-250.0,0.00019458,2]
[357631993,1744258040261,-2550.45550393,0.00019529,2]
[357631994,1744258040296,-250.0,0.00019542,2]
[357631995,1744258040348,-2550.45550393,0.00019653,2]
[357631996,1744258040390,-151.0,0.00019653,2]
[357631997,1744258040429,-151.0,0.00019653,2]
[357631998,1744258040466,-203.475109,0.00019653,2]
[357631999,1744258040506,-203.475109,0.00019653,2]
[357632000,1744258040544,-151.0,0.00019653,2]
[357632001,1744258040572,-530.351615,0.00019776,2]
[357632002,1744258040594,-530.351615,0.00019776,2]
[357632003,1744258040615,-151.0,0.00019776,2]
[357632004,1744258040636,-151.0,0.00019776,2]
[357632005,1744258041030,-151.0,0.00019776,2]
[357632006,1744258041094,-151.0,0.00019776,2]
[357632007,1744258041115,-166.379527,0.00019776,2]
[357632008,1744258041136,-151.0,0.00019776,2]
[357632009,1744258041156,-151.0,0.00019776,2]
[357632010,1744258041177,-151.0,0.00019776,2]
[357632011,1744258041201,-151.0,0.00019776,2]
[357632012,1744258041222,-151.0,0.00019776,2]
[357632013,1744258041242,-151.0,0.00019776,2]
[357632014,1744258041263,-151.0,0.00019776,2]
[357632015,1744258041284,-165.872526,0.00019776,2]
[357632016,1744258041305,-165.872526,0.00019776,2]
[357632017,1744258041326,-549.909709,0.00019776,2]
[357632018,1744258041347,-549.909709,0.00019776,2]
[357632019,1744258041369,-410.486611,0.00019776,2]
[357632020,1744258041390,-2550.45550393,0.00019776,2]
[357632021,1744258041410,-1000.0,0.00019798,2]
[357632022,1744258041433,-500.0,0.000198,2]
[357632023,1744258041454,-161.37,0.00019802,2]
[357632024,1744258041475,-300.0,0.00019885,2]
[357632025,1744258041496,-666.0,0.00019885,2]
[357632026,1744258041517,-152.754093,0.00019888,2]
[357632027,1744258041538,-227.750421,0.00019888,2]
[357632028,1744258041559,-395.536133,0.00019888,2]
[357632029,1744258041580,-151.0,0.00019889,2]
[357632030,1744258041601,-394.835698,0.00019889,2]
[357632031,1744258041622,-394.835698,0.00019889,2]
[357632032,1744258041643,-945.38709323,0.00019895,2]
[357632033,1744258041667,-300.0,0.00019896,2]
[357632034,1744258041689,-945.38709323,0.00019897,2]
[357632035,1744258041711,-945.38709323,0.00019898,2]
[357632036,1744258041732,-320.0,0.00019899,2]
[357632037,1744258041755,-151.0,0.00019899,2]
[357632038,1744258041775,-151.0,0.00019899,2]
[357632039,1744258041797,-151.0,0.00019899,2]
[357632040,1744258041819,-151.0,0.00019899,2]
[357632041,1744258041840,-151.0,0.00019899,2]
[357632042,1744258041861,-151.0,0.00019899,2]
[357632043,1744258041881,-163.751289,0.000199,2]
[357632044,1744258041902,-151.0,0.000199,2]
[357632045,1744258041924,-151.0,0.000199,2]
[357632046,1744258041945,-342.81096013,0.000199,2]
[357632047,1744258041967,-249.410444,0.000199,2]
[357632048,1744258041988,-249.410444,0.000199,2]
[357632049,1744258042010,-151.0,0.000199,2]
[357632050,1744258042031,-159.59413,0.000199,2]
[357632051,1744258042055,-152.240425,0.000199,2]
[357632052,1744258042077,-301.459028,0.000199,2]
[357632053,1744258042098,-301.459028,0.000199,2]
[357632054,1744258042119,-151.0,0.000199,2]
[357632055,1744258042140,-151.0,0.000199,2]
[357632056,1744258042161,-230.507565,0.000199,2]
[357632057,1744258042185,-278.423634,0.000199,2]
[357632058,1744258042205,-202.313559,0.000199,2]
[357632059,1744258042227,-202.313559,0.000199,2]
[357632060,1744258042248,-189.408503,0.000199,2]
[357632061,1744258042269,-151.0,0.000199,2]
[357632062,1744258042290,-151.0,0.000199,2]
[357632063,1744258042311,-206.659228,0.000199,2]
[357632064,1744258042332,-318.653305,0.000199,2]
[357632065,1744258042355,-318.653305,0.000199,2]
[357632066,1744258042376,-151.0,0.000199,2]
[357632067,1744258042397,-151.677562,0.000199,2]
[357632068,1744258042419,-945.38709323,0.000199,2]
[357632069,1744258042440,-151.0,0.000199,2]
[357632070,1744258042462,-151.0,0.000199,2]
[357632071,1744258042483,-168.766477,0.000199,2]
[357632072,1744258042505,-2550.45550393,0.000199,2]
[357632073,1744258042526,-151.0,0.000199,2]
[357632074,1744258042547,-154.476202,0.000199,2]
[357632075,1744258042570,-673.528474,0.000199,2]
[357632076,1744258042591,-151.0,0.000199,2]
[357632077,1744258042611,-235.666027,0.000199,2]
[357632078,1744258042632,-235.666027,0.000199,2]
[357632079,1744258042653,-168.065285,0.000199,2]
[357632080,1744258042674,-364.083387,0.000199,2]
[357632081,1744258042695,-364.083387,0.000199,2]
[357632082,1744258042716,-168.065285,0.000199,2]
[357632083,1744258042738,-166.77332745,0.000199,2]
[357632084,1744258042759,-151.0,0.000199,2]
[357632085,1744258042781,-168.79838961,0.000199,2]
[357632086,1744258042802,-153.377739,0.000199,2]
[357632087,1744258042825,-151.0,0.000199,2]
[357632088,1744258042847,-151.334158,0.000199,2]
[357632089,1744258042868,-230.296248,0.000199,2]
[357632090,1744258042890,-154.030206,0.000199,2]
[357632091,1744258042911,-2495.01246294,0.000199,2]
[357632092,1744258042931,-187.62984725,0.000199,2]
[357632093,1744258042952,-151.0,0.000199,2]
[357632094,1744258042973,-12168.13595278,0.000199,2]
[357632095,1744258042995,-151.0,0.000199,2]
[357632096,1744258043020,-156.144022,0.000199,2]
[357632097,1744258043042,-294.30032368,0.00019903,2]
[357632098,1744258043063,-7715.0,0.00019973,2]
[357632099,1744258043085,-203.0,0.00019973,2]
[357632100,1744258043106,-188.0,0.00019973,2]
[357632101,1744258043127,-504.5551203,0.00019973,2]
[357632102,1744258043150,-500.0,0.00019973,2]
[357632103,1744258043171,-692.0,0.00019973,2]
[357632104,1744258043192,-279.85356049,0.00019973,2]
[357632105,1744258043213,-500.0,0.00019973,2]
[357632106,1744258043234,-500.0,0.00019973,2]
[357632107,1744258043256,-500.0,0.00019973,2]
[357632108,1744258043277,-152.10540459,0.00019973,2]
[357632109,1744258043298,-505.39972622,0.00019973,2]
[357632110,1744258043319,-151.0,0.00019973,2]
[357632111,1744258043340,-158.418146,0.00019973,2]
[357632112,1744258043361,-220.471636,0.00019973,2]
[357632113,1744258043382,-394.835698,0.00019973,2]
[357632114,1744258043403,-394.835698,0.00019973,2]
[357632115,1744258043426,-530.351615,0.00019973,2]
[357632116,1744258043448,-530.351615,0.00019973,2]
[357632117,1744258043470,-197.715871,0.00019973,2]
[357632118,1744258043491,-151.0,0.00019973,2]
[357632119,1744258043512,-258.501813,0.00019973,2]
[357632120,1744258043534,-151.0,0.00019973,2]
[357632121,1744258043555,-151.0,0.00019973,2]
[357632122,1744258043576,-151.0,0.00019973,2]
[357632123,1744258043597,-151.0,0.00019986,2]
[357632124,1744258043618,-152.885005,0.00019986,2]
[357632125,1744258043639,-151.0,0.00019986,2]
[357632126,1744258043660,-228.360895,0.00019986,2]
[357632127,1744258043681,-165.339069,0.00019986,2]
[357632128,1744258043702,-151.0,0.00019986,2]
[357632129,1744258043722,-264.120459,0.00019986,2]
[357632130,1744258043745,-151.0,0.00019986,2]
[357632131,1744258043766,-152.047564,0.00019986,2]
[357632132,1744258043789,-152.500275,0.00019986,2]
[357632133,1744258043811,-151.0,0.00019986,2]
[357632134,1744258043832,-151.0,0.00019986,2]
[357632135,1744258043853,-151.0,0.00019986,2]
[357632136,1744258044019,-151.0,0.00019986,2]
[357632137,1744258044081,-152.007445,0.00019986,2]
[357632138,1744258044103,-151.0,0.00019986,2]
[357632139,1744258044124,-151.0,0.00019986,2]
[357632140,1744258044145,-151.0,0.00019986,2]
[357632141,1744258044166,-151.0,0.00019986,2]
[357632142,1744258044188,-249.410444,0.00019986,2]
[357632143,1744258044209,-249.410444,0.00019986,2]
[357632144,1744258044231,-249.410444,0.00019986,2]
[357632145,1744258044251,-249.410444,0.00019986,2]
[357632146,1744258044272,-151.0,0.00019986,2]
[357632147,1744258044293,-151.0,0.00019986,2]
[357632148,1744258044315,-611.026878,0.00019986,2]
[357632149,1744258044336,-611.026878,0.00019986,2]
[357632150,1744258044356,-611.026878,0.00019986,2]
[357632151,1744258044377,-611.026878,0.00019986,2]
[357632152,1744258044399,-244.276276,0.00019986,2]
[357632153,1744258044420,-244.276276,0.00019986,2]
[357632154,1744258044442,-244.276276,0.00019986,2]
[357632155,1744258044463,-244.276276,0.00019986,2]
[357632156,1744258044484,-151.0,0.00019986,2]
[357632157,1744258044505,-270.964723,0.00019986,2]
[357632158,1744258044527,-301.459028,0.00019986,2]
[357632159,1744258044549,-301.459028,0.00019986,2]
[357632160,1744258044570,-151.0,0.00019986,2]
[357632161,1744258044590,-151.0,0.00019986,2]
[357632162,1744258044612,-394.835698,0.00019986,2]
[357632163,1744258044636,-394.835698,0.00019986,2]
[357632164,1744258044658,-151.0,0.00019986,2]
[357632165,1744258044679,-151.0,0.00019986,2]
[357632166,1744258044704,-278.423634,0.00019986,2]
[357632167,1744258044727,-278.423634,0.00019986,2]
[357632168,1744258044752,-202.313559,0.00019986,2]
[357632169,1744258044774,-202.313559,0.00019986,2]
[357632170,1744258044797,-202.313559,0.00019986,2]
[357632171,1744258044820,-202.313559,0.00019986,2]
[357632172,1744258044842,-395.536133,0.00019986,2]
[357632173,1744258044864,-395.536133,0.00019986,2]
[357632174,1744258044886,-151.0,0.00019986,2]
[357632175,1744258044908,-151.0,0.00019986,2]
[357632176,1744258044933,-151.0,0.00019986,2]
[357632177,1744258044955,-151.0,0.00019986,2]
[357632178,1744258044976,-318.653305,0.00019986,2]
[357632179,1744258044999,-318.653305,0.00019986,2]
[357632180,1744258045021,-318.653305,0.00019986,2]
[357632181,1744258045042,-318.653305,0.00019986,2]
[357632182,1744258045065,-151.0,0.00019986,2]
[357632183,1744258045087,-254.980463,0.00019986,2]
[357632184,1744258045108,-289.501958,0.00019986,2]
[357632185,1744258045130,-8505.9052936,0.00019986,2]
[357632186,1744258045151,-151.0,0.00019986,2]
[357632187,1744258045174,-151.0,0.00019986,2]
[357632188,1744258045196,-153.468628,0.00019986,2]
[357632189,1744258045218,-673.528474,0.00019986,2]
[357632190,1744258045240,-151.0,0.00019986,2]
[357632191,1744258045261,-151.0,0.00019986,2]
[357632192,1744258045282,-151.0,0.00019986,2]
[357632193,1744258045304,-151.0,0.00019986,2]
[357632194,1744258045326,-235.666027,0.00019986,2]
[357632195,1744258045346,-235.666027,0.00019986,2]
[357632196,1744258045367,-235.666027,0.00019986,2]
[357632197,1744258045388,-235.666027,0.00019986,2]
[357632198,1744258045409,-168.065285,0.00019986,2]
[357632199,1744258045432,-364.083387,0.00019986,2]
[357632200,1744258045452,-364.083387,0.00019986,2]
[357632201,1744258045473,-168.065285,0.00019986,2]
[357632202,1744258045494,-364.083387,0.00019986,2]
[357632203,1744258045517,-364.083387,0.00019986,2]
[357632204,1744258045538,-168.065285,0.00019986,2]
[357632205,1744258045559,-168.065285,0.00019986,2]
[357632206,1744258045581,-3347.5210245,0.00019986,2]
[357632207,1744258045603,-158.526615,0.00019986,2]
[357632208,1744258045622,-203.475109,0.00019986,2]
[357632209,1744258045643,-203.475109,0.00019986,2]
[357632210,1744258045664,-203.475109,0.00019986,2]
[357632211,1744258045686,-203.475109,0.00019986,2]
[357632212,1744258045709,-530.351615,0.00019986,2]
[357632213,1744258045732,-151.0,0.00019986,2]
[357632214,1744258045758,-151.0,0.00019986,2]
[357632215,1744258045781,-15037.11094405,0.00019986,2]
[357632216,1744258050152,-200.0,0.00018876,2]
[357632217,1744258050174,-410.486611,0.00019776,2]
[357632218,1744258050195,-30542.75523734,0.00019986,2]
[357632222,1744258231981,-9162.02286925,0.00017679,2]
[357632223,1744258232021,-4339.87093075,0.00017679,2]
[357632224,1744258232031,-268.8619,0.00018787,2]
[357632225,1744258232040,-3869.8615,0.00018787,2]
[357632226,1744258232050,-3913.992,0.00018787,2]
[357632227,1744258232059,-26934.148,0.00018787,2]
[357632228,1744258232069,-250.0,0.00018799,2]
[357632229,1744258232080,-1000.0,0.000188,2]
[357632230,1744258232089,-1000.0,0.00018811,2]
[357632231,1744258232099,-2500.0,0.000189,2]
[357632232,1744258232109,-500.0,0.000189,2]
[357632233,1744258232118,-17181.34303614,0.00019,2]
[357632234,1744258232153,-4267.31673857,0.00019,2]
[357632235,1744258232165,-636.10140926,0.00019,2]
[357632238,1744258232186,-1085.9649538,0.00019,2]
[357632239,1744258232207,-642.47707618,0.00019,2]
[357632240,1744258232223,-272.80967872,0.00019,2]
[357632242,1744258232235,-2429.41431592,0.00019,2]
[357632244,1744258232245,-200.0,0.00019235,7]
[357632246,1744258232255,-300.0,0.00019281,2]
[357632248,1744258232265,-250.0,0.00019337,2]
[357632250,1744258232275,-2219.840624,0.00019386,2]
[357632252,1744258232285,-250.0,0.0001942,2]
[357632254,1744258232294,-151.0,0.00019776,2]
[357632255,1744258232304,-606.175626,0.00019776,2]
[357632257,1744258232314,-236.660089,0.00019776,2]
[357632258,1744258232324,-223.057314,0.00019776,2]
[357632259,1744258232334,-606.175626,0.00019776,2]
[357632260,1744258232343,-236.660089,0.00019776,2]
[357632262,1744258232352,-223.057314,0.00019776,2]
[357632264,1744258232362,-37197.0127,0.000198,2]
[357632266,1744258232372,-6791.31531242,0.000199,2]
[357632267,1744258232381,-336.205713,0.000199,2]
[357632268,1744258232391,-336.205713,0.000199,2]
[357632269,1744258232400,-8112.09063518,0.000199,2]
[357632270,1744258232410,-489.20822131,0.000199,2]
[357632271,1744258232419,-5591.3297529,0.00019972,2]
[357632272,1744258232429,-30013.2143169,0.00019972,2]
[357632273,1744258232439,-2487.4888811,0.00019972,2]
[357632274,1744258232449,-65371.4343309,0.00019972,2]
[357632275,1744258232459,-500.0,0.00019973,2]
[357632276,1744258232468,-500.0,0.00019973,2]
[357632277,1744258232478,-151.0,0.00019973,2]
[357632278,1744258232488,-223.057314,0.00019973,2]
[357632279,1744258232498,-223.057314,0.00019973,2]
[357632280,1744258232508,-530.351615,0.00019986,2]
[357632281,1744258232518,-151.0,0.00019986,2]
[357632282,1744258232528,-151.0,0.00019986,2]
[357632283,1744258232537,-1480.2408776,0.00019986,2]
[357632284,1744258232547,-151.0,0.00019986,2]
[357632285,1744258232556,-152.757387,0.00019986,2]
[357632286,1744258232566,-151.0,0.00019986,2]
[357632287,1744258232575,-151.0,0.00019986,2]
[357632288,1744258232584,-151.0,0.00019986,2]
[357632289,1744258232594,-153.876903,0.00019986,2]
[357632290,1744258232604,-151.0,0.00019986,2]
[357632291,1744258232613,-151.0,0.00019986,2]
[357632292,1744258232622,-165.872526,0.00019986,2]
[357632293,1744258232632,-165.872526,0.00019986,2]
[357632294,1744258232642,-151.0,0.00019986,2]
[357632295,1744258232652,-151.0,0.00019986,2]
[357632296,1744258232662,-410.486611,0.00019986,2]
[357632297,1744258232672,-410.486611,0.00019986,2]
[357632298,1744258232681,-4714.0611926,0.00019986,2]
[357632299,1744258232691,-151.0,0.00019986,2]
[357632300,1744258232701,-15413.83493512,0.00019986,2]
[357632301,1744258237860,-1421.91293233,0.00019986,2]
[357632302,1744258238029,-8468.45258775,0.00019986,2]
[357632303,1744258238039,-606.175626,0.00019986,2]
[357632304,1744258238049,-606.175626,0.00019986,2]
[357632305,1744258238059,-336.205713,0.00019986,2]
[357632306,1744258238069,-236.660089,0.00019986,2]
[357632307,1744258238078,-236.660089,0.00019986,2]
[357632308,1744258238088,-223.057314,0.00019986,2]
[357632309,1744258238097,-606.175626,0.00019986,2]
[357632310,1744258238107,-606.175626,0.00019986,2]
[357632311,1744258238116,-336.205713,0.00019986,2]
[357632312,1744258238126,-236.660089,0.00019986,2]
[357632313,1744258238136,-223.057314,0.00019986,2]
[357632314,1744258238145,-236.660089,0.00019986,2]
[357632315,1744258238155,-2097.206804,0.00019986,2]
[357632316,1744258238164,-55037.8924918,0.00019986,2]
[357632317,1744258238174,-191.68121923,0.0001999,2]
[357632318,1744258238183,-191.68121923,0.0001999,2]
[357632319,1744258238193,-2862.32610858,0.00019998,2]
[357632320,1744258238203,-20477.91069964,0.00019999,2]
[357632330,1744258241212,-80618.97196841,0.00019999,2]
[357632331,1744258241222,-151.0,0.00019999,2]
[357632332,1744258241232,-151.0,0.00019999,2]
[357632333,1744258241242,-151.0,0.00019999,2]
[357632334,1744258241251,-154.849111,0.00019999,2]
[357632335,1744258241261,-151.0,0.00019999,2]
[357632336,1744258241271,-265.627102,0.00019999,2]
[357632337,1744258241282,-226.311371,0.00019999,2]
[357632338,1744258241291,-335.946595,0.00019999,2]
[357632339,1744258241300,-335.946595,0.00019999,2]
[357632340,1744258241310,-223.169265,0.00019999,2]
[357632341,1744258241319,-249.410444,0.00019999,2]
[357632342,1744258241329,-249.410444,0.00019999,2]
[357632343,1744258241339,-611.026878,0.00019999,2]
[357632344,1744258241348,-611.026878,0.00019999,2]
[357632345,1744258241357,-244.276276,0.00019999,2]
[357632346,1744258241366,-244.276276,0.00019999,2]
[357632347,1744258241376,-151.0,0.00019999,2]
[357632348,1744258241385,-301.459028,0.00019999,2]
[357632349,1744258241395,-301.459028,0.00019999,2]
[357632350,1744258241404,-151.0,0.00019999,2]
[357632351,1744258241413,-151.0,0.00019999,2]
[357632352,1744258241423,-394.835698,0.00019999,2]
[357632353,1744258241432,-394.835698,0.00019999,2]
[357632354,1744258241442,-151.0,0.00019999,2]
[357632355,1744258241452,-202.313559,0.00019999,2]
[357632356,1744258241461,-202.313559,0.00019999,2]
[357632357,1744258241470,-151.0,0.00019999,2]
[357632358,1744258241479,-151.0,0.00019999,2]
[357632359,1744258241489,-151.0,0.00019999,2]
[357632360,1744258241498,-1000.0,0.00019999,2]
[357632361,1744258241508,-151.0,0.00019999,2]
[357632362,1744258241517,-160.896691,0.00019999,2]
[357632363,1744258241526,-235.666027,0.00019999,2]
[357632364,1744258241535,-235.666027,0.00019999,2]
[357632365,1744258241545,-364.083387,0.00019999,2]
[357632366,1744258241554,-364.083387,0.00019999,2]
[357632367,1744258241563,-530.351615,0.00019999,2]
[357632368,1744258241572,-151.0,0.00019999,2]
[357632369,1744258241582,-530.351615,0.00019999,2]
[357632370,1744258241591,-151.0,0.00019999,2]
[357632371,1744258241601,-152.996575,0.00019999,2]
[357632372,1744258241610,-151.0,0.00019999,2]
[357632373,1744258241619,-151.0,0.00019999,2]
[357632374,1744258241629,-151.0,0.00019999,2]
[357632375,1744258241639,-151.0,0.00019999,2]
[357632376,1744258241648,-151.0,0.00019999,2]
[357632377,1744258241657,-151.0,0.00019999,2]
[357632378,1744258241667,-165.872526,0.00019999,2]
[357632379,1744258241676,-165.872526,0.00019999,2]
[357632380,1744258241685,-1000.7157,0.00019999,2]
[357632381,1744258241694,-151.0,0.00019999,2]
[357632382,1744258241703,-151.0,0.00019999,2]
[357632383,1744258241713,-410.486611,0.00019999,2]
[357632384,1744258241722,-410.486611,0.00019999,2]
[357632385,1744258241731,-151.0,0.00019999,2]
[357632386,1744258241740,-606.175626,0.00019999,2]
[357632387,1744258241749,-336.205713,0.00019999,2]
[357632388,1744258241758,-236.660089,0.00019999,2]
[357632389,1744258241767,-223.057314,0.00019999,2]
[357632390,1744258241777,-606.175626,0.00019999,2]
[357632391,1744258241786,-336.205713,0.00019999,2]
[357632392,1744258241796,-223.057314,0.00019999,2]
[357632393,1744258241809,-236.660089,0.00019999,2]
[357632394,1744258241819,-1414.0,0.0002,2]
[357632395,1744258241827,-688306.11808647,0.0002,2]
[357632396,1744258242530,-1463.88406368,0.0002,2]
[357632397,1744258242549,-4891.75415988,0.0002,2]
[357632398,1744258242560,-2446.27148904,0.0002,2]
[357632399,1744258242576,-9247.16874785,0.0002,2]
[357632400,1744258242589,-3147.85589261,0.0002,2]
[357632401,1744258242600,-867.00299893,0.0002,2]
[357632402,1744258242611,-452.64,0.0002,2]
[357632410,1744258243047,-187.62984724,0.000199,2]
[357632411,1744258243057,-535.58949553,0.0002,2]
[357632412,1744258243072,-1414.5329418,0.0002,2]
[357632413,1744258243092,-448.67857483,0.0002,2]
[357632414,1744258243103,-27817.57147317,0.0002,2]
[357632415,1744258243114,-500.0,0.0002,2]
[357632416,1744258243126,-288.07999384,0.0002,2]
[357632417,1744258243141,-487.89012847,0.0002,2]
[357632418,1744258243225,-1285.09837437,0.0002,2]
[357632419,1744258243246,-22353.79882893,0.0002,2]
[357632420,1744258243257,-889.375035,0.0002,2]
[357632421,1744258243268,-516.86075677,0.0002,2]
[357632423,1744258243280,-414.32655066,0.0002,2]
[357632424,1744258243291,-3094.86716903,0.0002,2]
[357632426,1744258243302,-496.29121978,0.0002,2]
[357632428,1744258243313,-2227.93445776,0.0002,2]
[357632433,1744258243884,-1047067.56242026,0.0002,2]
[357632434,1744258245925,-655.0000275,0.0002,2]
[357632435,1744258246144,-3675.41195589,0.0002,2]
[357632436,1744258246254,-1782.90451956,0.0002,2]
[357632437,1744258246310,-441.57511061,0.0002,2]
[357632467,1744258981384,228.85074296,0.00032,120]
[357632470,1744259225106,-1670.72726185,0.000154,2]
[357632471,1744259225127,-867.96220605,0.00018014,2]
[357632472,1744259225149,-844.44,0.00018114,2]
[357632473,1744259225169,-867.96220603,0.00018687,2]
[357632474,1744259225192,-1000.0,0.00018787,2]
[357632475,1744259225212,-200.0,0.00018964,2]
[357632476,1744259225233,-200.0,0.00019037,7]
[357632477,1744259225253,-519.0,0.000191,2]
[357632478,1744259225274,-933.0,0.000191,2]
[357632479,1744259225295,-500.0,0.00019178,2]
[357632480,1744259225317,-200.0,0.00019294,2]
[357632481,1744259225340,-150.99,0.00019299,2]
[357632482,1744259225365,-517.891,0.00019299,2]
[357632483,1744259225388,-135.21744939,0.00019399,2]
[357632501,1744259431965,-1020.30032495,0.000153,2]
[357632502,1744259431975,-250.0,0.0001908,2]
[357632503,1744259431985,-196.34138022,0.00019317,2]
[357632504,1744259431995,-1631.0761056,0.00019399,2]
[357632505,1744259432004,-1326.86,0.00019417,2]
[357632506,1744259432014,-21005.42218923,0.00019437,2]
[357632507,1744259432026,-2894.57781077,0.00019437,2]
[357632508,1744259432035,-250.0,0.00019694,2]
[357632509,1744259432046,-161.37,0.00019793,2]